[Event "Titled Tuesday Blitz February 14 Early 2023"]
[White "Jenkins, Drake"]
[Black "Larina, Maria"]
[WhiteFideId "2022397"]
[BlackFideId "24113182"]
[WhiteElo "2130"]
[BlackElo "1948"]
[Result "0-1"]
[Round "08"]
[TimeControl "180+2"]
[Date "2023.02.14"]
[WhiteClock "0:00:10"]
[BlackClock "0:00:07"]

1. Nf3 {[%clk 0:03:00]}  f5 {[%clk 0:02:57]} 2. g3 {[%clk 0:03:00]}  Nf6 {[%clk 0:02:57]} 3. Bg2 {[%clk 0:03:00]}  g6 {[%clk 0:02:57]} 4. c4 {[%clk 0:03:01]}  Bg7 {[%clk 0:02:57]} 5. O-O {[%clk 0:03:01]}  d6 {[%clk 0:02:57]} 6. Nc3 {[%clk 0:03:01]}  O-O {[%clk 0:02:57]} 7. Rb1 {[%clk 0:03:00]}  e5 {[%clk 0:02:57]} 8. d3 {[%clk 0:03:00]}  a5 {[%clk 0:02:55]} 9. a3 {[%clk 0:03:00]}  Kh8 {[%clk 0:02:37]} 10. b4 {[%clk 0:02:59]}  axb4 {[%clk 0:02:37]} 11. axb4 {[%clk 0:03:00]}  h6 {[%clk 0:02:23]} 12. Bb2 {[%clk 0:02:59]}  Qe8 {[%clk 0:02:22]} 13. Ra1 {[%clk 0:02:58]}  Rxa1 {[%clk 0:02:21]} 14. Qxa1 {[%clk 0:02:58]}  Nbd7 {[%clk 0:02:05]} 15. Nb5 {[%clk 0:02:45]}  Qd8 {[%clk 0:01:55]} 16. Qa5 {[%clk 0:02:44]}  b6 {[%clk 0:01:53]} 17. Qa7 {[%clk 0:02:44]}  Ne8 {[%clk 0:01:49]} 18. Nd2 {[%clk 0:02:27]}  g5 {[%clk 0:01:48]} 19. Qa1 {[%clk 0:02:06]}  Qe7 {[%clk 0:01:35]} 20. e3 {[%clk 0:01:58]}  Ndf6 {[%clk 0:01:28]} 21. Nc3 {[%clk 0:01:48]}  h5 {[%clk 0:01:17]} 22. Nd5 {[%clk 0:01:47]}  Nxd5 {[%clk 0:01:16]} 23. cxd5 {[%clk 0:01:42]}  h4 {[%clk 0:01:09]} 24. Qd1 {[%clk 0:01:39]}  Rf6 {[%clk 0:00:52]} 25. f4 {[%clk 0:01:31]}  g4 {[%clk 0:00:46]} 26. fxe5 {[%clk 0:01:04]}  dxe5 {[%clk 0:00:45]} 27. e4 {[%clk 0:01:04]}  h3 {[%clk 0:00:26]} 28. Bh1 {[%clk 0:01:03]}  f4 {[%clk 0:00:26]} 29. gxf4 {[%clk 0:00:59]}  Rxf4 {[%clk 0:00:26]} 30. b5 {[%clk 0:00:41]}  Qc5+ {[%clk 0:00:21]} 31. d4 {[%clk 0:00:40]}  Rxf1+ {[%clk 0:00:16]} 32. Nxf1 {[%clk 0:00:33]}  exd4 {[%clk 0:00:16]} 33. Qd3 {[%clk 0:00:33]}  Qd6 {[%clk 0:00:14]} 34. Bxd4 {[%clk 0:00:31]}  Nf6 {[%clk 0:00:13]} 35. Ne3 {[%clk 0:00:28]}  Qf4 {[%clk 0:00:11]} 36. e5 {[%clk 0:00:16]}  g3 {[%clk 0:00:10]} 37. hxg3 {[%clk 0:00:13]}  Qxg3+ {[%clk 0:00:10]} 38. Kf1 {[%clk 0:00:13]}  Ng4 {[%clk 0:00:07]} 39. d6 {[%clk 0:00:10]}  Qf2# {[%clk 0:00:07]} 0-1


[Site "https://www.chess.com"]

[Event "Titled Tuesday Blitz February 14 Early 2023"]
[White "Necula, Iulian"]
[Black "Rose, Felix"]
[WhiteFideId "1232380"]
[BlackFideId "5105722"]
[WhiteElo "1851"]
[BlackElo "2091"]
[Result "0-1"]
[Round "08"]
[TimeControl "180+2"]
[Date "2023.02.14"]
[WhiteClock "0:00:24"]
[BlackClock "0:00:23"]

1. d4 {[%clk 0:03:00]}  d5 {[%clk 0:02:59]} 2. Nc3 {[%clk 0:03:00]}  Nf6 {[%clk 0:02:59]} 3. Bf4 {[%clk 0:03:00]}  c5 {[%clk 0:03:00]} 4. e4 {[%clk 0:02:59]}  Nxe4 {[%clk 0:03:00]} 5. Nxe4 {[%clk 0:02:59]}  dxe4 {[%clk 0:03:00]} 6. dxc5 {[%clk 0:02:58]}  Qa5+ {[%clk 0:03:00]} 7. c3 {[%clk 0:02:58]}  Qxc5 {[%clk 0:02:58]} 8. Qa4+ {[%clk 0:02:52]}  Nc6 {[%clk 0:02:56]} 9. Qxe4 {[%clk 0:02:51]}  Bf5 {[%clk 0:02:52]} 10. Qe3 {[%clk 0:02:48]}  e5 {[%clk 0:02:47]} 11. Qxc5 {[%clk 0:02:44]}  Bxc5 {[%clk 0:02:47]} 12. Be3 {[%clk 0:02:43]}  Bxe3 {[%clk 0:02:43]} 13. fxe3 {[%clk 0:02:44]}  O-O-O {[%clk 0:02:40]} 14. Nf3 {[%clk 0:02:40]}  f6 {[%clk 0:02:40]} 15. Bc4 {[%clk 0:02:28]}  Kc7 {[%clk 0:02:39]} 16. Kf2 {[%clk 0:02:13]}  a6 {[%clk 0:02:30]} 17. Rhd1 {[%clk 0:02:13]}  Bc2 {[%clk 0:02:30]} 18. Rdc1 {[%clk 0:02:07]}  Be4 {[%clk 0:02:25]} 19. Rd1 {[%clk 0:02:06]}  b5 {[%clk 0:02:24]} 20. Be2 {[%clk 0:01:58]}  Bc2 {[%clk 0:02:11]} 21. Rdc1 {[%clk 0:01:56]}  Bd3 {[%clk 0:02:02]} 22. Rd1 {[%clk 0:01:54]}  Bxe2 {[%clk 0:01:55]} 23. Kxe2 {[%clk 0:01:55]}  Rxd1 {[%clk 0:01:55]} 24. Rxd1 {[%clk 0:01:54]}  a5 {[%clk 0:01:54]} 25. b3 {[%clk 0:01:49]}  Ra8 {[%clk 0:01:49]} 26. Rd5 {[%clk 0:01:47]}  Rb8 {[%clk 0:01:44]} 27. g4 {[%clk 0:01:45]}  a4 {[%clk 0:01:42]} 28. b4 {[%clk 0:01:41]}  Ne7 {[%clk 0:01:35]} 29. Rc5+ {[%clk 0:01:39]}  Kb6 {[%clk 0:01:32]} 30. g5 {[%clk 0:01:39]}  Rd8 {[%clk 0:01:27]} 31. gxf6 {[%clk 0:01:38]}  gxf6 {[%clk 0:01:28]} 32. e4 {[%clk 0:01:34]}  Ng6 {[%clk 0:01:24]} 33. a3 {[%clk 0:00:45]}  Nf4+ {[%clk 0:01:23]} 34. Ke3 {[%clk 0:00:33]}  Rd3+ {[%clk 0:01:11]} 35. Kf2 {[%clk 0:00:33]}  Rd1 {[%clk 0:01:00]} 36. Nh4 {[%clk 0:00:32]}  Ra1 {[%clk 0:00:47]} 37. Ke3 {[%clk 0:00:31]}  Rxa3 {[%clk 0:00:44]} 38. Nf5 {[%clk 0:00:30]}  Ra1 {[%clk 0:00:38]} 39. Rc8 {[%clk 0:00:29]}  Re1+ {[%clk 0:00:34]} 40. Kf2 {[%clk 0:00:29]}  Re2+ {[%clk 0:00:35]} 41. Kf3 {[%clk 0:00:28]}  Rxh2 {[%clk 0:00:32]} 42. Rb8+ {[%clk 0:00:28]}  Ka6 {[%clk 0:00:31]} 43. Ra8+ {[%clk 0:00:28]}  Kb7 {[%clk 0:00:32]} 44. Rf8 {[%clk 0:00:27]}  Rh3+ {[%clk 0:00:31]} 45. Kf2 {[%clk 0:00:26]}  Rxc3 {[%clk 0:00:30]} 46. Rxf6 {[%clk 0:00:25]}  a3 {[%clk 0:00:31]} 47. Rf7+ {[%clk 0:00:24]}  Kb8 {[%clk 0:00:31]} 48. Nd6 {[%clk 0:00:23]}  a2 {[%clk 0:00:25]} 49. Nxb5 {[%clk 0:00:23]}  Rc2+ {[%clk 0:00:21]} 50. Ke3 {[%clk 0:00:22]}  a1=Q {[%clk 0:00:20]} 51. Rf8+ {[%clk 0:00:23]}  Kb7 {[%clk 0:00:20]} 52. Nd6+ {[%clk 0:00:23]}  Kc6 {[%clk 0:00:21]} 53. Rc8+ {[%clk 0:00:21]}  Kxd6 {[%clk 0:00:20]} 54. Rxc2 {[%clk 0:00:22]}  Qd4+ {[%clk 0:00:21]} 55. Kf3 {[%clk 0:00:21]}  Qd3+ {[%clk 0:00:21]} 56. Kg4 {[%clk 0:00:21]}  Qxc2 {[%clk 0:00:21]} 57. Kf5 {[%clk 0:00:22]}  Kc6 {[%clk 0:00:21]} 58. b5+ {[%clk 0:00:23]}  Kxb5 {[%clk 0:00:21]} 59. Kxe5 {[%clk 0:00:23]}  Nd3+ {[%clk 0:00:22]} 60. Kd4 {[%clk 0:00:23]}  Nc5 {[%clk 0:00:22]} 61. e5 {[%clk 0:00:23]}  Qe4+ {[%clk 0:00:23]} 62. Kc3 {[%clk 0:00:23]}  Qxe5+ {[%clk 0:00:23]} 63. Kc2 {[%clk 0:00:24]}  Qe4+ {[%clk 0:00:23]} 0-1


[Site "https://www.chess.com"]

[Event "Titled Tuesday Blitz February 14 Early 2023"]
[White "Afanasieva, Alexandra"]
[Black "Georg, Heinz"]
[WhiteFideId "34126926"]
[BlackFideId "4607295"]
[WhiteElo "1857"]
[BlackElo "2107"]
[Result "0-1"]
[Round "08"]
[TimeControl "180+2"]
[Date "2023.02.14"]
[WhiteClock "0:00:01"]
[BlackClock "0:00:05"]

1. e4 {[%clk 0:03:00]}  e5 {[%clk 0:02:59]} 2. Nf3 {[%clk 0:03:01]}  Nc6 {[%clk 0:02:59]} 3. Bb5 {[%clk 0:03:01]}  f5 {[%clk 0:02:59]} 4. d3 {[%clk 0:03:00]}  Nf6 {[%clk 0:02:59]} 5. Nc3 {[%clk 0:02:59]}  d6 {[%clk 0:02:59]} 6. Bg5 {[%clk 0:02:59]}  Be7 {[%clk 0:02:59]} 7. O-O {[%clk 0:02:58]}  O-O {[%clk 0:02:59]} 8. Bc4+ {[%clk 0:02:55]}  Kh8 {[%clk 0:02:58]} 9. a3 {[%clk 0:02:54]}  fxe4 {[%clk 0:02:56]} 10. dxe4 {[%clk 0:02:52]}  Bg4 {[%clk 0:02:56]} 11. h3 {[%clk 0:02:38]}  Bh5 {[%clk 0:02:56]} 12. Qd3 {[%clk 0:02:24]}  Bxf3 {[%clk 0:02:54]} 13. Qxf3 {[%clk 0:02:25]}  Nd4 {[%clk 0:02:37]} 14. Qd1 {[%clk 0:02:11]}  Qd7 {[%clk 0:02:25]} 15. f4 {[%clk 0:02:08]}  h6 {[%clk 0:02:13]} 16. Bxf6 {[%clk 0:02:04]}  Bxf6 {[%clk 0:02:13]} 17. f5 {[%clk 0:02:05]}  c6 {[%clk 0:02:03]} 18. Ne2 {[%clk 0:01:33]}  d5 {[%clk 0:01:58]} 19. Nxd4 {[%clk 0:01:28]}  exd4 {[%clk 0:01:58]} 20. Bd3 {[%clk 0:01:29]}  dxe4 {[%clk 0:01:57]} 21. Bxe4 {[%clk 0:01:30]}  Rfe8 {[%clk 0:01:52]} 22. Bd3 {[%clk 0:01:28]}  Re3 {[%clk 0:01:50]} 23. Qg4 {[%clk 0:01:27]}  Rae8 {[%clk 0:01:47]} 24. Qg6 {[%clk 0:01:08]}  R8e5 {[%clk 0:01:24]} 25. Qg4 {[%clk 0:00:57]}  b5 {[%clk 0:01:16]} 26. Rad1 {[%clk 0:00:56]}  Qe7 {[%clk 0:01:13]} 27. b3 {[%clk 0:00:36]}  Qd6 {[%clk 0:00:29]} 28. a4 {[%clk 0:00:35]}  a6 {[%clk 0:00:28]} 29. axb5 {[%clk 0:00:35]}  cxb5 {[%clk 0:00:28]} 30. Ra1 {[%clk 0:00:18]}  Re8 {[%clk 0:00:26]} 31. Rad1 {[%clk 0:00:16]}  Rg3 {[%clk 0:00:25]} 32. Qf4 {[%clk 0:00:13]}  Be5 {[%clk 0:00:24]} 33. Qf2 {[%clk 0:00:09]}  Qd5 {[%clk 0:00:19]} 34. Rde1 {[%clk 0:00:09]}  Rf8 {[%clk 0:00:11]} 35. Re2 {[%clk 0:00:06]}  Re3 {[%clk 0:00:11]} 36. Rxe3 {[%clk 0:00:04]}  dxe3 {[%clk 0:00:11]} 37. Qe2 {[%clk 0:00:05]}  Bd4 {[%clk 0:00:09]} 38. Kh1 {[%clk 0:00:05]}  Qe5 {[%clk 0:00:09]} 39. Rf3 {[%clk 0:00:04]}  a5 {[%clk 0:00:08]} 40. c3 {[%clk 0:00:04]}  Bc5 {[%clk 0:00:05]} 41. b4 {[%clk 0:00:03]}  axb4 {[%clk 0:00:05]} 42. cxb4 {[%clk 0:00:04]}  Bb6 {[%clk 0:00:05]} 43. Bxb5 {[%clk 0:00:01]}  Ra8 {[%clk 0:00:05]} 0-1


[Site "https://www.chess.com"]

[Event "Titled Tuesday Blitz February 14 Early 2023"]
[White "Willathgamuwa, Kevin"]
[Black "Makhmudov, Shukhrat"]
[WhiteFideId "3214168"]
[BlackFideId "14200775"]
[WhiteElo "2062"]
[BlackElo "2115"]
[Result "1-0"]
[Round "08"]
[TimeControl "180+2"]
[Date "2023.02.14"]
[WhiteClock "0:00:14"]
[BlackClock "0:00:18"]

1. e4 {[%clk 0:02:57]}  e5 {[%clk 0:02:59]} 2. Nf3 {[%clk 0:02:55]}  Nc6 {[%clk 0:02:58]} 3. d4 {[%clk 0:02:56]}  exd4 {[%clk 0:02:58]} 4. Bc4 {[%clk 0:02:57]}  Nf6 {[%clk 0:02:57]} 5. e5 {[%clk 0:02:57]}  d5 {[%clk 0:02:57]} 6. Bb5 {[%clk 0:02:55]}  Ne4 {[%clk 0:02:57]} 7. Nxd4 {[%clk 0:02:55]}  Bc5 {[%clk 0:02:57]} 8. O-O {[%clk 0:02:42]}  Bd7 {[%clk 0:02:55]} 9. Bxc6 {[%clk 0:02:36]}  bxc6 {[%clk 0:02:55]} 10. f3 {[%clk 0:02:37]}  Ng5 {[%clk 0:02:52]} 11. Be3 {[%clk 0:02:37]}  Bb6 {[%clk 0:02:52]} 12. f4 {[%clk 0:02:37]}  Ne4 {[%clk 0:02:51]} 13. Nd2 {[%clk 0:02:32]}  c5 {[%clk 0:02:51]} 14. N4b3 {[%clk 0:02:28]}  Nxd2 {[%clk 0:02:47]} 15. Qxd2 {[%clk 0:02:29]}  d4 {[%clk 0:02:45]} 16. Bf2 {[%clk 0:02:28]}  Bc6 {[%clk 0:02:35]} 17. f5 {[%clk 0:02:20]}  O-O {[%clk 0:02:31]} 18. f6 {[%clk 0:02:13]}  gxf6 {[%clk 0:02:26]} 19. Bh4 {[%clk 0:02:13]}  Qd7 {[%clk 0:02:00]} 20. Bxf6 {[%clk 0:02:00]}  Qg4 {[%clk 0:01:57]} 21. Rf4 {[%clk 0:01:53]}  Qg6 {[%clk 0:01:56]} 22. h3 {[%clk 0:01:33]}  h5 {[%clk 0:01:55]} 23. Raf1 {[%clk 0:01:26]}  Kh7 {[%clk 0:01:54]} 24. Rf5 {[%clk 0:01:25]}  Rg8 {[%clk 0:01:50]} 25. Rg5 {[%clk 0:01:25]}  Qh6 {[%clk 0:01:40]} 26. Qd3+ {[%clk 0:00:56]}  Rg6 {[%clk 0:01:40]} 27. Qf5 {[%clk 0:00:56]}  Bd5 {[%clk 0:01:17]} 28. Rf2 {[%clk 0:00:40]}  Be6 {[%clk 0:01:11]} 29. Qe4 {[%clk 0:00:31]}  Rd8 {[%clk 0:01:09]} 30. Bxd8 {[%clk 0:00:24]}  c4 {[%clk 0:01:02]} 31. Rxg6 {[%clk 0:00:16]}  Qxg6 {[%clk 0:00:59]} 32. Qxg6+ {[%clk 0:00:15]}  Kxg6 {[%clk 0:00:59]} 33. Nd2 {[%clk 0:00:14]}  c3 {[%clk 0:00:52]} 34. bxc3 {[%clk 0:00:12]}  dxc3 {[%clk 0:00:52]} 35. Nb3 {[%clk 0:00:13]}  Bf5 {[%clk 0:00:40]} 36. Bh4 {[%clk 0:00:10]}  Bxc2 {[%clk 0:00:39]} 37. Kf1 {[%clk 0:00:09]}  Bxf2 {[%clk 0:00:29]} 38. Bxf2 {[%clk 0:00:10]}  Bxb3 {[%clk 0:00:29]} 39. axb3 {[%clk 0:00:09]}  Kf5 {[%clk 0:00:28]} 40. Ke2 {[%clk 0:00:08]}  Kxe5 {[%clk 0:00:23]} 41. Kd3 {[%clk 0:00:07]}  a6 {[%clk 0:00:21]} 42. Kxc3 {[%clk 0:00:07]}  Ke4 {[%clk 0:00:22]} 43. Kc4 {[%clk 0:00:07]}  f5 {[%clk 0:00:20]} 44. Kc5 {[%clk 0:00:06]}  Kd3 {[%clk 0:00:21]} 45. Kc6 {[%clk 0:00:03]}  Kc3 {[%clk 0:00:20]} 46. Kxc7 {[%clk 0:00:04]}  Kxb3 {[%clk 0:00:20]} 47. Kb6 {[%clk 0:00:05]}  Kc4 {[%clk 0:00:20]} 48. Kxa6 {[%clk 0:00:05]}  Kd3 {[%clk 0:00:21]} 49. Bg3 {[%clk 0:00:05]}  Ke2 {[%clk 0:00:22]} 50. Bf4 {[%clk 0:00:06]}  Kf2 {[%clk 0:00:22]} 51. g3 {[%clk 0:00:06]}  h4 {[%clk 0:00:19]} 52. gxh4 {[%clk 0:00:07]}  Kf3 {[%clk 0:00:18]} 53. Be5 {[%clk 0:00:07]}  Ke4 {[%clk 0:00:17]} 54. Bb8 {[%clk 0:00:08]}  f4 {[%clk 0:00:17]} 55. h5 {[%clk 0:00:06]}  f3 {[%clk 0:00:17]} 56. Ba7 {[%clk 0:00:06]}  Kf5 {[%clk 0:00:18]} 57. h6 {[%clk 0:00:05]}  Kg6 {[%clk 0:00:18]} 58. Be3 {[%clk 0:00:05]}  f2 {[%clk 0:00:18]} 59. Bxf2 {[%clk 0:00:05]}  Kxh6 {[%clk 0:00:19]} 60. h4 {[%clk 0:00:06]}  Kh5 {[%clk 0:00:19]} 61. Kb5 {[%clk 0:00:07]}  Kh6 {[%clk 0:00:19]} 62. Kc4 {[%clk 0:00:08]}  Kh5 {[%clk 0:00:20]} 63. Kd3 {[%clk 0:00:08]}  Kg4 {[%clk 0:00:21]} 64. Ke3 {[%clk 0:00:09]}  Kh5 {[%clk 0:00:20]} 65. Kf3 {[%clk 0:00:10]}  Kg6 {[%clk 0:00:20]} 66. Kg4 {[%clk 0:00:11]}  Kh6 {[%clk 0:00:20]} 67. h5 {[%clk 0:00:12]}  Kh7 {[%clk 0:00:20]} 68. Be3 {[%clk 0:00:13]}  Kg7 {[%clk 0:00:21]} 69. Kg5 {[%clk 0:00:13]}  Kf7 {[%clk 0:00:21]} 70. h6 {[%clk 0:00:14]}  Kg8 {[%clk 0:00:20]} 71. Kg6 {[%clk 0:00:14]}  Kh8 {[%clk 0:00:18]} 72. Bd4+ {[%clk 0:00:14]} 1-0


[Site "https://www.chess.com"]

[Event "Titled Tuesday Blitz February 14 Early 2023"]
[White "ritanovikova"]
[Black "Orujov, Elshad"]
[BlackFideId "13403540"]
[WhiteElo "2179"]
[BlackElo "2304"]
[Result "0-1"]
[Round "08"]
[TimeControl "180+2"]
[Date "2023.02.14"]
[WhiteClock "0:01:14"]
[BlackClock "0:01:35"]

1. d4 {[%clk 0:03:00]}  Nf6 {[%clk 0:02:59]} 2. Bf4 {[%clk 0:03:00]}  d5 {[%clk 0:02:59]} 3. Nf3 {[%clk 0:02:59]}  c5 {[%clk 0:02:59]} 4. c3 {[%clk 0:02:59]}  Nc6 {[%clk 0:02:59]} 5. e3 {[%clk 0:02:59]}  Qb6 {[%clk 0:02:59]} 6. Qb3 {[%clk 0:02:59]}  c4 {[%clk 0:03:00]} 7. Qxb6 {[%clk 0:02:58]}  axb6 {[%clk 0:03:01]} 8. Nbd2 {[%clk 0:02:50]}  b5 {[%clk 0:03:00]} 9. Ne5 {[%clk 0:02:42]}  e6 {[%clk 0:03:00]} 10. Nxc6 {[%clk 0:02:41]}  bxc6 {[%clk 0:02:59]} 11. f3 {[%clk 0:02:41]}  b4 {[%clk 0:02:58]} 12. e4 {[%clk 0:02:40]}  bxc3 {[%clk 0:02:58]} 13. bxc3 {[%clk 0:02:41]}  Ra3 {[%clk 0:02:56]} 14. Nb1 {[%clk 0:02:41]}  Ra4 {[%clk 0:02:51]} 15. Be2 {[%clk 0:02:40]}  dxe4 {[%clk 0:02:49]} 16. Bd1 {[%clk 0:02:40]}  Ra7 {[%clk 0:02:47]} 17. Nd2 {[%clk 0:02:40]}  exf3 {[%clk 0:02:43]} 18. Bxf3 {[%clk 0:02:36]}  Nd5 {[%clk 0:02:43]} 19. Bg3 {[%clk 0:02:26]}  Ba6 {[%clk 0:02:27]} 20. Rc1 {[%clk 0:02:16]}  Ba3 {[%clk 0:02:24]} 21. Rc2 {[%clk 0:02:15]}  O-O {[%clk 0:02:22]} 22. Bf2 {[%clk 0:02:11]}  Bb5 {[%clk 0:02:21]} 23. Ne4 {[%clk 0:02:03]}  Ba4 {[%clk 0:02:21]} 24. Re2 {[%clk 0:02:02]}  f5 {[%clk 0:02:20]} 25. Ng5 {[%clk 0:01:59]}  Nxc3 {[%clk 0:02:17]} 26. Rxe6 {[%clk 0:01:58]}  Re7 {[%clk 0:02:10]} 27. Rxe7 {[%clk 0:01:55]}  Bxe7 {[%clk 0:02:11]} 28. Ne6 {[%clk 0:01:51]}  Re8 {[%clk 0:02:09]} 29. O-O {[%clk 0:01:44]}  Bd6 {[%clk 0:01:59]} 30. Ng5 {[%clk 0:01:35]}  h6 {[%clk 0:01:56]} 31. Nh3 {[%clk 0:01:33]}  Nxa2 {[%clk 0:01:55]} 32. Bh5 {[%clk 0:01:29]}  Rb8 {[%clk 0:01:49]} 33. Ra1 {[%clk 0:01:27]}  Bb3 {[%clk 0:01:41]} 34. Bd1 {[%clk 0:01:23]}  Bxd1 {[%clk 0:01:39]} 35. Rxd1 {[%clk 0:01:23]}  c3 {[%clk 0:01:37]} 36. Be3 {[%clk 0:01:14]}  c2 {[%clk 0:01:37]} 37. Rf1 {[%clk 0:01:14]}  Rb1 {[%clk 0:01:35]} 0-1


[Site "https://www.chess.com"]

[Event "Titled Tuesday Blitz February 14 Early 2023"]
[White "Sadovsky, Artem"]
[Black "Hartikainen, Jarmo"]
[WhiteFideId "4155840"]
[BlackFideId "503134"]
[WhiteElo "2276"]
[BlackElo "2108"]
[Result "1-0"]
[Round "08"]
[TimeControl "180+2"]
[Date "2023.02.14"]
[WhiteClock "0:00:27"]
[BlackClock "0:00:01"]

1. d4 {[%clk 0:02:56]}  d5 {[%clk 0:02:55]} 2. Nf3 {[%clk 0:02:45]}  Nf6 {[%clk 0:02:54]} 3. e3 {[%clk 0:02:40]}  c6 {[%clk 0:02:52]} 4. Bd3 {[%clk 0:02:30]}  e6 {[%clk 0:02:51]} 5. O-O {[%clk 0:02:27]}  Nbd7 {[%clk 0:02:50]} 6. Nbd2 {[%clk 0:02:18]}  Bd6 {[%clk 0:02:49]} 7. e4 {[%clk 0:02:10]}  dxe4 {[%clk 0:02:47]} 8. Nxe4 {[%clk 0:02:11]}  Nxe4 {[%clk 0:02:46]} 9. Bxe4 {[%clk 0:02:12]}  Qc7 {[%clk 0:02:34]} 10. h4 {[%clk 0:02:07]}  h6 {[%clk 0:02:29]} 11. c4 {[%clk 0:02:06]}  Nf6 {[%clk 0:02:21]} 12. c5 {[%clk 0:02:06]}  Nxe4 {[%clk 0:02:13]} 13. cxd6 {[%clk 0:02:06]}  Qxd6 {[%clk 0:02:00]} 14. Qe2 {[%clk 0:02:06]}  Nf6 {[%clk 0:01:53]} 15. Ne5 {[%clk 0:02:05]}  Qxd4 {[%clk 0:01:37]} 16. b3 {[%clk 0:02:05]}  Qxh4 {[%clk 0:01:11]} 17. Ba3 {[%clk 0:02:04]}  Bd7 {[%clk 0:01:01]} 18. Rfd1 {[%clk 0:01:55]}  O-O-O {[%clk 0:00:47]} 19. Nxf7 {[%clk 0:01:54]}  e5 {[%clk 0:00:27]} 20. Nxd8 {[%clk 0:01:46]}  Ng4 {[%clk 0:00:26]} 21. Qf3 {[%clk 0:01:31]}  Qh2+ {[%clk 0:00:22]} 22. Kf1 {[%clk 0:01:31]}  Rxd8 {[%clk 0:00:20]} 23. Rxd7 {[%clk 0:01:29]}  Rxd7 {[%clk 0:00:20]} 24. Re1 {[%clk 0:01:11]}  Qh1+ {[%clk 0:00:19]} 25. Ke2 {[%clk 0:01:11]}  Qh4 {[%clk 0:00:17]} 26. g3 {[%clk 0:01:06]}  Qg5 {[%clk 0:00:17]} 27. Bc1 {[%clk 0:01:07]}  Qh5 {[%clk 0:00:15]} 28. Rh1 {[%clk 0:00:59]}  Qg6 {[%clk 0:00:12]} 29. Kf1 {[%clk 0:00:57]}  e4 {[%clk 0:00:12]} 30. Qf8+ {[%clk 0:00:55]}  Kc7 {[%clk 0:00:12]} 31. Bf4+ {[%clk 0:00:54]}  Kb6 {[%clk 0:00:11]} 32. Qb4+ {[%clk 0:00:54]}  Ka6 {[%clk 0:00:10]} 33. Qa4+ {[%clk 0:00:54]}  Kb6 {[%clk 0:00:10]} 34. Qb4+ {[%clk 0:00:54]}  Ka6 {[%clk 0:00:11]} 35. Qa4+ {[%clk 0:00:55]}  Kb6 {[%clk 0:00:11]} 36. Kg2 {[%clk 0:00:56]}  e3 {[%clk 0:00:07]} 37. Qb4+ {[%clk 0:00:56]}  Ka6 {[%clk 0:00:07]} 38. Qa4+ {[%clk 0:00:48]}  Kb6 {[%clk 0:00:07]} 39. fxe3 {[%clk 0:00:26]}  Rd2+ {[%clk 0:00:06]} 40. Kf3 {[%clk 0:00:24]}  Ne5+ {[%clk 0:00:05]} 41. Bxe5 {[%clk 0:00:24]}  Qd3 {[%clk 0:00:04]} 42. Qd4+ {[%clk 0:00:23]}  Qxd4 {[%clk 0:00:03]} 43. Bxd4+ {[%clk 0:00:24]}  Kb5 {[%clk 0:00:02]} 44. Bxg7 {[%clk 0:00:25]}  Rxa2 {[%clk 0:00:02]} 45. Rxh6 {[%clk 0:00:25]}  a5 {[%clk 0:00:02]} 46. Bd4 {[%clk 0:00:25]}  Ra3 {[%clk 0:00:02]} 47. Rh5+ {[%clk 0:00:26]}  Ka6 {[%clk 0:00:01]} 48. g4 {[%clk 0:00:25]}  b6 {[%clk 0:00:02]} 49. g5 {[%clk 0:00:26]}  Rxb3 {[%clk 0:00:01]} 50. g6 {[%clk 0:00:26]}  Rb1 {[%clk 0:00:02]} 51. g7 {[%clk 0:00:26]}  Rg1 {[%clk 0:00:02]} 52. Bf6 {[%clk 0:00:26]}  a4 {[%clk 0:00:01]} 53. Rg5 {[%clk 0:00:27]}  a3 {[%clk 0:00:01]} 54. Rxg1 {[%clk 0:00:27]} 1-0


[Site "https://www.chess.com"]

[Event "Titled Tuesday Blitz February 14 Early 2023"]
[White "Ricaurte Lopez, Juan Carlos"]
[Black "Martinez, Shawn"]
[WhiteFideId "3600327"]
[BlackFideId "2039770"]
[WhiteElo "2226"]
[BlackElo "1881"]
[Result "1-0"]
[Round "08"]
[TimeControl "180+2"]
[Date "2023.02.14"]
[WhiteClock "0:00:07"]
[BlackClock "0:00:02"]

1. e4 {[%clk 0:02:55]}  c5 {[%clk 0:02:57]} 2. d4 {[%clk 0:02:53]}  cxd4 {[%clk 0:02:56]} 3. c3 {[%clk 0:02:52]}  Nf6 {[%clk 0:02:57]} 4. e5 {[%clk 0:02:51]}  Nd5 {[%clk 0:02:57]} 5. Bc4 {[%clk 0:02:48]}  Nb6 {[%clk 0:02:47]} 6. Bb3 {[%clk 0:02:47]}  d5 {[%clk 0:02:43]} 7. exd6 {[%clk 0:02:43]}  e6 {[%clk 0:02:26]} 8. cxd4 {[%clk 0:02:40]}  Bxd6 {[%clk 0:02:25]} 9. Nf3 {[%clk 0:02:41]}  Nc6 {[%clk 0:02:24]} 10. O-O {[%clk 0:02:40]}  h6 {[%clk 0:02:22]} 11. a3 {[%clk 0:02:36]}  O-O {[%clk 0:02:21]} 12. Nc3 {[%clk 0:02:36]}  e5 {[%clk 0:02:15]} 13. dxe5 {[%clk 0:02:25]}  Nxe5 {[%clk 0:02:07]} 14. Bf4 {[%clk 0:02:15]}  Nxf3+ {[%clk 0:02:01]} 15. Qxf3 {[%clk 0:02:14]}  Bxf4 {[%clk 0:02:02]} 16. Qxf4 {[%clk 0:02:14]}  Qf6 {[%clk 0:01:27]} 17. Qxf6 {[%clk 0:02:11]}  gxf6 {[%clk 0:01:28]} 18. Rad1 {[%clk 0:02:09]}  Bf5 {[%clk 0:01:27]} 19. Rd6 {[%clk 0:02:08]}  Kg7 {[%clk 0:01:26]} 20. Rfd1 {[%clk 0:02:03]}  Rfe8 {[%clk 0:01:25]} 21. f3 {[%clk 0:02:03]}  Re7 {[%clk 0:01:21]} 22. g4 {[%clk 0:02:02]}  Be6 {[%clk 0:01:16]} 23. Bxe6 {[%clk 0:01:49]}  Rxe6 {[%clk 0:01:12]} 24. Ne4 {[%clk 0:01:25]}  Rc8 {[%clk 0:01:06]} 25. b3 {[%clk 0:01:20]}  Rc2 {[%clk 0:00:52]} 26. R1d2 {[%clk 0:01:18]}  Rxd2 {[%clk 0:00:47]} 27. Rxd2 {[%clk 0:01:16]}  Rc6 {[%clk 0:00:47]} 28. Kf2 {[%clk 0:01:14]}  h5 {[%clk 0:00:23]} 29. h3 {[%clk 0:01:11]}  hxg4 {[%clk 0:00:23]} 30. hxg4 {[%clk 0:01:12]}  Nc8 {[%clk 0:00:17]} 31. Rd7 {[%clk 0:01:08]}  b5 {[%clk 0:00:15]} 32. Rb7 {[%clk 0:01:06]}  a6 {[%clk 0:00:14]} 33. Kg3 {[%clk 0:01:06]}  Nb6 {[%clk 0:00:14]} 34. g5 {[%clk 0:00:41]}  f5 {[%clk 0:00:05]} 35. Nf2 {[%clk 0:00:33]}  Nd5 {[%clk 0:00:04]} 36. Rd7 {[%clk 0:00:27]}  Nc3 {[%clk 0:00:03]} 37. Kf4 {[%clk 0:00:26]}  Kg6 {[%clk 0:00:02]} 38. Nd3 {[%clk 0:00:23]}  Ne2+ {[%clk 0:00:02]} 39. Ke3 {[%clk 0:00:21]}  Nc3 {[%clk 0:00:02]} 40. Ne5+ {[%clk 0:00:20]}  Kxg5 {[%clk 0:00:02]} 41. Nxc6 {[%clk 0:00:21]}  f4+ {[%clk 0:00:02]} 42. Kd4 {[%clk 0:00:20]}  Nb1 {[%clk 0:00:02]} 43. Rxf7 {[%clk 0:00:20]}  Nxa3 {[%clk 0:00:02]} 44. Ne5 {[%clk 0:00:20]}  Nc2+ {[%clk 0:00:02]} 45. Ke4 {[%clk 0:00:18]}  a5 {[%clk 0:00:01]} 46. Rf5+ {[%clk 0:00:18]}  Kh6 {[%clk 0:00:01]} 47. Rxf4 {[%clk 0:00:18]}  a4 {[%clk 0:00:01]} 48. bxa4 {[%clk 0:00:17]}  bxa4 {[%clk 0:00:02]} 49. Nc4 {[%clk 0:00:17]}  a3 {[%clk 0:00:02]} 50. Nxa3 {[%clk 0:00:15]}  Nxa3 {[%clk 0:00:03]} 51. Kf5 {[%clk 0:00:14]}  Nc2 {[%clk 0:00:03]} 52. Kf6 {[%clk 0:00:11]}  Kh5 {[%clk 0:00:04]} 53. Re4 {[%clk 0:00:09]}  Na3 {[%clk 0:00:03]} 54. f4 {[%clk 0:00:08]}  Nc2 {[%clk 0:00:02]} 55. f5 {[%clk 0:00:07]} 1-0


[Site "https://www.chess.com"]